[Event "Swiss Championship U14 2022"]
[Site "Biel"]
[Date "2022.07.21"]
[Round "7.8"]
[White "Gade, Niels Severin"]
[Black "Haas, Anthony"]
[Result "0-1"]
[ECO "C42"]
[WhiteElo "1505"]
[BlackElo "1638"]
[Annotator "NA RC COMBH"]
[PlyCount "108"]
[EventDate "2022.07.18"]
[EventType "swiss"]
[EventCountry "SUI"]
[SourceTitle "playchess.com"]
[Source "ChessBase"]
[SourceQuality "1"]
[TimeControl "5400+30"]

1. e4 {[%emt 0:00:04]} e5 {[%emt 0:00:06]} 2. Nf3 {[%emt 0:00:04]} Nf6 {[%emt 0:00:02]} 3. Nc3 {[%emt 0:00:07]} Bb4 {[%emt 0:00:04]} 4. Bc4 {[%emt 0:01:26]} O-O {[%emt 0:01:51]} 5. d3 {[%emt 0:03:42]} d6 {[%emt 0:10:47]} 6. h3 {[%emt 0:00:00]} Be6 {[%emt 0:01:45]} 7. Bb3 {[%emt 0:00:00]} h6 {[%emt 0:01:32]} 8. Bd2 {[%emt 0:07:24]} Bxc3 {[%emt 0:16:42]} 9. Bxc3 {[%emt 0:00:00]} Nc6 {[%emt 0:02:03]} 10. O-O {[%emt 0:00:00]} a5 {[%emt 0:00:59]} 11. Re1 {[%emt 0:00:00]} a4 {[%emt 0:01:00]} 12. Bxe6 {[%emt 0:00:00]} fxe6 {[%emt 0:00:02]} 13. d4 {[%emt 0:00:00]} exd4 {[%emt 0:03:25]} 14. Nxd4 {[%emt 0:00:40]} Nxd4 {[%emt 0:01:26]} 15. Bxd4 {[%emt 0:01:23]} e5 {[%emt 0:01:52]} 16. Bc3 {[%emt 0:01:23]} Qe8 {[%emt 0:03:49]} 17. Qd3 {[%emt 0:02:36]} Qc6 {[%emt 0:04:40]} 18. f3 {[%emt 0:01:51]} Nh5 {[%emt 0:02:26]} 19. Bd2 {[%emt 0:01:26]} Rab8 {[%emt 0:14:00]} 20. b3 {[%emt 0:01:47]} Nf4 {[%emt 0:03:45]} 21. Bxf4 {[%emt 0:00:17]} Rxf4 {[%emt 0:00:12]} 22. Qc4+ {[%emt 0:00:28]} Qxc4 {[%emt 0:00:33]} 23. bxc4 {[%emt 0:00:06]} b6 {[%emt 0:01:10]} 24. Rab1 {[%emt 0:00:32]} Ra8 {[%emt 0:00:46]} 25. a3 {[%emt 0:00:31]} Rf7 {[%emt 0:01:39]} 26. Red1 {[%emt 0:02:36]} Kf8 {[%emt 0:02:08]} 27. Kf2 {[%emt 0:00:29]} Ke7 {[%emt 0:01:27]} 28. Rb5 {[%emt 0:00:33]} Ra6 {[%emt 0:00:46]} 29. Ke3 {[%emt 0:00:37]} Rf8 {[%emt 0:00:45]} 30. Rbd5 {[%emt 0:03:04]} Rd8 {[%emt 0:02:14]} 31. g3 {[%emt 0:02:21]} c6 {[%emt 0:04:28]} 32. R5d3 {[%emt 0:01:10]} Ra5 {[%emt 0:04:22]} 33. f4 {[%emt 0:00:34]} exf4+ {[%emt 0:00:25]} 34. gxf4 {[%emt 0:00:12]} Rh5 {[%emt 0:01:18]} 35. Kf2 {[%emt 0:00:25]} Rc5 {[%emt 0:02:50]} 36. Rd4 {[%emt 0:00:13]} Ke6 {[%emt 0:00:35]} 37. e5 {[%emt 0:01:17]} d5 {[%emt 0:00:05]} 38. cxd5+ {[%emt 0:00:22]} Rdxd5 {[%emt 0:00:35]} 39. Rxd5 {[%emt 0:01:12]} cxd5 {[%emt 0:00:12]} 40. Rd4 {[%emt 0:02:15]} Rxc2+ {[%emt 0:00:36]} 41. Kg1 {[%emt 0:00:33]} Rc4 {[%emt 0:00:53]} 42. Rxc4 {[%emt 0:01:43]} dxc4 {[%emt 0:00:00]} 43. Kf2 {[%emt 0:00:18]} g5 {[%emt 0:00:00]} 44. fxg5 {[%emt 0:01:29]} hxg5 {[%emt 0:00:00]} 45. Ke3 {[%emt 0:01:53]} Kxe5 {[%emt 0:00:00]} 46. Kd2 {[%emt 0:00:10]} Kd4 {[%emt 0:00:00]} 47. Kc2 {[%emt 0:00:06]} c3 {[%emt 0:00:20]} 48. Kc1 {[%emt 0:00:21]} Kd3 {[%emt 0:00:44]} 49. Kd1 {[%emt 0:00:40]} c2+ {[%emt 0:00:00]} 50. Kc1 {[%emt 0:00:06]} b5 {[%emt 0:00:00]} 51. h4 {[%emt 0:00:14]} gxh4 {[%emt 0:00:00]} 52. Kb2 {[%emt 0:00:20]} Kd2 {[%emt 0:00:00]} 53. Ka2 {[%emt 0:00:00]} c1=R {[%emt 0:00:00]} 54. Kb2 {[%emt 0:00:01]} Rc3 {[%emt 0:00:51]} 0-1